bitfinex/quotes_ETHUSD_20240926
["timestamp","ask_amount","ask_price","bid_price","bid_amount"]
[1727308996539,0.005,2586.9,2586.4,3.0]
[1727308996751,0.005,2586.9,2586.5,3.86622]
[1727308997064,0.005,2586.9,2586.6,3.9427986]
[1727308997222,0.005,2586.9,2586.8,3.86578]
[1727308998886,0.005,2586.9,2586.8,6.94249211]
[1727309000802,0.005,2586.9,2586.8,7.72739211]
[1727309001005,0.005,2586.9,2586.8,7.65068]
[1727309004485,0.005,2586.9,2586.8,3.7849]
[1727309004689,0.005,2586.9,2586.8,7.65068]
[1727309005692,0.005,2586.9,2586.8,3.0]
[1727309008498,0.005,2586.9,2586.6,3.7722]
[1727309008664,0.005,2586.9,2586.6,3.0]
[1727309008865,0.005,2586.9,2586.4,7.67504]
[1727309009081,0.8279,2586.7,2586.3,3.86645]
[1727309009260,0.8279,2586.7,2586.4,3.86637]
[1727309010872,0.8279,2586.7,2586.4,6.86636]
[1727309011984,0.8279,2586.7,2586.3,3.86645]
[1727309014906,4.69391,2586.7,2586.1,3.86672]
[1727309015230,3.86616,2586.6,2586.0,6.86695]
[1727309015513,1.68435,2586.7,2586.2,3.86667]
[1727309015695,5.55028,2586.7,2586.2,3.86667]
[1727309016082,5.55028,2586.7,2586.1,3.86667]
[1727309016310,3.86631,2586.5,2586.2,3.0]
[1727309016520,4.67435,2586.3,2585.8,4.68759]
[1727309016815,3.8667,2586.2,2585.7,3.86736]
[1727309016988,4.67435,2586.3,2585.6,3.86748]
[1727309016989,3.8669,2586.1,2585.6,3.86748]
[1727309017390,0.8073,2586.5,2586.2,3.86663]
[1727309017596,0.8073,2586.5,2586.3,3.86647]
[1727309017792,0.7757,2586.8,2586.2,3.86663]
[1727309017991,0.7757,2586.8,2586.4,3.86637]
[1727309018408,0.7757,2586.8,2586.4,7.73266]
[1727309018618,0.7757,2586.8,2586.4,7.73258]
[1727309018811,0.7757,2586.8,2586.4,3.86629]
[1727309018981,0.7757,2586.8,2586.6,3.86605]
[1727309019182,0.005,2586.9,2586.7,3.86592]
[1727309019388,0.005,2586.9,2586.8,3.86578]
[1727309019621,0.005,2586.9,2586.8,3.94248549]
[1727309019796,0.005,2586.9,2586.7,7.73184]
[1727309019994,0.005,2586.9,2586.8,3.86578]
[1727309020617,0.005,2586.9,2586.8,3.94249806]
[1727309021488,0.005,2586.9,2586.8,6.94249806]
[1727309021734,0.005,2586.9,2586.8,7.71999806]
[1727309021891,0.005,2586.9,2586.8,7.64328]
[1727309022087,0.0372018,2587.1,2586.8,3.7775]
[1727309022292,0.81214024,2588.1,2587.9,3.0]
[1727309022494,0.005,2588.5,2588.2,3.86356]
[1727309022800,0.005,2588.5,2588.3,3.6514153]
[1727309023131,0.005,2588.5,2588.2,3.86356]
[1727309023335,0.005,2588.5,2587.9,3.0]
[1727309023620,3.86835,2588.5,2587.9,3.0]
[1727309023844,4.33910118,2588.5,2587.9,3.0]
[1727309024511,0.8197,2588.3,2587.8,3.0]
[1727309024710,0.8197,2588.3,2587.6,3.86451]
[1727309024711,0.8197,2588.3,2587.7,3.0]
[1727309025244,0.8197,2588.3,2587.8,3.86424]
[1727309025567,0.8197,2588.3,2587.7,3.0]
[1727309025568,3.86371,2588.2,2587.7,3.0]
[1727309025707,3.86371,2588.2,2587.6,3.86451]
[1727309026217,3.86392,2588.1,2587.5,3.0]
[1727309026424,3.86371,2588.2,2587.5,3.0]
[1727309026607,0.8145,2587.9,2587.5,3.0]
[1727309027929,4.67863,2587.9,2587.3,6.94158439]
[1727309028228,4.67863,2587.9,2587.3,3.07666439]
[1727309028545,0.8145,2587.9,2587.2,3.07666439]
[1727309028747,4.67868,2587.9,2587.4,3.0]
[1727309028952,4.67868,2587.9,2587.2,7.73016]
[1727309028953,3.86432,2587.8,2587.2,7.73016]
[1727309029155,3.86432,2587.8,2587.3,3.86499]
[1727309029360,3.86432,2587.8,2587.2,3.86517]
[1727309029648,4.42516452,2587.8,2587.2,3.86517]
[1727309029816,3.86447,2587.7,2587.2,3.86517]
[1727309030212,0.8145,2587.5,2587.1,3.0]
[1727309030447,0.8145,2587.5,2587.1,6.86519]
[1727309030805,0.8145,2587.5,2587.1,3.0]
[1727309031015,0.8145,2587.5,2587.4,3.86488]
[1727309031207,0.8145,2587.5,2587.3,3.86488]
[1727309031420,0.8145,2587.5,2587.4,3.86488]
[1727309031735,0.8145,2587.5,2587.3,3.86488]
[1727309032041,0.8145,2587.5,2587.3,7.72982]
[1727309032207,0.8145,2587.5,2587.3,3.86488]
[1727309032409,0.8145,2587.5,2587.4,3.86488]
[1727309032650,0.8145,2587.5,2587.3,7.72982]
[1727309032856,0.8145,2587.5,2587.3,3.86488]
[1727309033634,0.8145,2587.5,2587.2,3.86514]
[1727309034014,0.8145,2587.5,2587.0,3.0]
[1727309034234,0.8145,2587.5,2587.0,6.86533]
[1727309035003,0.8145,2587.5,2587.0,3.0]
[1727309035255,0.8145,2587.5,2587.2,3.0]
[1727309035957,0.8145,2587.5,2587.2,6.86517]
[1727309039246,0.8145,2587.5,2587.4,3.86488]
[1727309041676,0.8145,2587.5,2587.2,6.8651]
[1727309041961,0.8145,2587.5,2587.1,3.86532]
[1727309042169,0.8234,2587.2,2586.6,3.86598]
[1727309042328,4.68868,2587.2,2586.6,3.86598]
[1727309042572,4.68868,2587.2,2586.6,7.80869707]
[1727309042770,8.55395,2587.2,2586.6,3.86598]
[1727309043009,8.55395,2587.2,2586.4,4.64963]
[1727309043010,3.86548,2587.0,2586.5,3.86613]
[1727309043219,3.86548,2587.0,2586.4,4.64963]
[1727309043220,0.8224,2586.9,2586.4,3.86633]
[1727309043422,3.8658,2586.8,2586.3,3.86652]
[1727309043715,3.8658,2586.8,2586.2,3.86658]
[1727309043867,0.8224,2586.9,2586.2,3.86658]
[1727309044069,4.68805,2586.9,2586.4,3.86636]
[1727309045580,4.68805,2586.9,2586.3,3.0]
[1727309045581,3.86578,2586.8,2586.3,3.0]
[1727309045987,4.68805,2586.9,2586.3,6.86642]
[1727309046396,3.86587,2586.8,2586.3,3.0]
[1727309047118,0.7632,2586.5,2586.1,3.0]
[1727309048523,0.7835,2586.9,2586.3,3.86652]
[1727309048703,4.64921,2586.9,2586.3,3.86644]
[1727309049017,0.7835,2586.9,2586.4,3.86637]
[1727309049327,0.7835,2586.9,2586.5,3.86608]
[1727309049628,7.36,2587.0,2586.6,3.86607]
[1727309050123,7.36,2587.0,2586.6,7.73206]
[1727309050280,7.36,2587.0,2586.7,3.86584]
[1727309050482,0.8153,2587.2,2586.7,3.86586]
[1727309051296,4.68058,2587.2,2586.7,3.86583]
[1727309052705,0.8153,2587.2,2586.7,3.86583]
[1727309054238,0.8153,2587.2,2586.7,3.86585]
[1727309055508,0.8153,2587.2,2586.8,3.07672339]
[1727309055739,8.57984061,2587.7,2587.0,3.86538]
[1727309055740,0.7675,2587.4,2587.0,3.86538]
[1727309055943,0.7675,2587.4,2587.1,3.94192401]
[1727309056230,0.7675,2587.4,2587.0,4.62888]
[1727309056231,4.63217,2587.6,2587.0,4.62888]
[1727309056437,4.63217,2587.6,2587.0,8.49427]
[1727309056594,3.86489,2587.4,2587.0,3.0]
[1727309056794,3.86481,2587.5,2587.0,3.86546]
[1727309057669,3.86481,2587.5,2586.9,3.0]
[1727309057793,3.86496,2587.4,2586.9,3.0]
[1727309058638,0.796,2588.1,2587.9,3.8641]
[1727309058936,0.796,2588.1,2587.8,3.8642]
[1727309059233,0.796,2588.1,2587.4,7.4751153]
[1727309059435,0.796,2588.1,2587.5,3.86463]
[1727309059635,0.796,2588.1,2587.6,3.86458]
[1727309061625,4.65985,2588.1,2587.4,7.68851]
[1727309061824,4.65985,2588.1,2587.5,3.86465]
[1727309062626,3.86406,2588.0,2587.4,6.86488]
[1727309062956,0.762,2587.8,2587.4,3.0]
[1727309063541,4.62631,2587.8,2587.4,3.0]
[1727309063725,5.475347,2587.8,2587.2,3.0]
[1727309063927,4.62631,2587.8,2587.3,3.865]
[1727309068266,4.62631,2587.8,2587.3,7.73]
[1727309068553,4.62631,2587.8,2587.3,3.865]
[1727309068953,4.62631,2587.8,2587.3,7.72995]
[1727309069153,4.62631,2587.8,2587.3,3.86495]
[1727309069519,0.762,2587.8,2587.3,3.86495]
[1727309069758,0.762,2587.8,2587.5,3.86468]
[1727309072222,0.762,2587.8,2587.4,3.86487]
[1727309073758,0.8022,2588.1,2587.8,3.86417]
[1727309073936,0.8022,2588.1,2587.9,3.86404]
[1727309074264,0.8022,2588.1,2587.8,3.86417]
[1727309074265,0.8022,2588.1,2587.8,3.86428]
[1727309074439,0.8022,2588.1,2587.6,3.86447]
[1727309074628,0.8022,2588.1,2587.6,7.72897]
[1727309074827,5.60021302,2588.1,2587.6,3.86447]
[1727309075053,4.66604,2588.1,2587.6,3.86447]
[1727309075249,8.53001,2588.1,2587.6,3.86447]
[1727309075968,3.86399,2588.0,2587.5,6.86471]
[1727309076438,3.86416,2587.9,2587.5,3.0]
[1727309076640,4.68957,2587.8,2587.2,3.86507]
[1727309076840,8.55396,2587.8,2587.2,3.86507]
[1727309077053,3.8646,2587.6,2587.1,3.86529]
[1727309077668,0.8252,2587.7,2587.2,3.86516]
[1727309078078,4.68963,2587.7,2587.2,3.86516]
[1727309078368,3.86474,2587.5,2587.0,3.86538]
[1727309078579,0.7822,2587.4,2587.0,3.86538]
[1727309079565,3.86512,2587.3,2586.9,3.0]
[1727309079766,3.86512,2587.3,2586.6,3.86598]
[1727309080105,3.86512,2587.3,2586.8,3.86577]
[1727309084648,0.7822,2587.4,2587.0,3.86544]
[1727309085238,0.7822,2587.4,2587.0,7.73084]
[1727309085443,0.7822,2587.4,2587.0,3.8654]
[1727309086777,0.7822,2587.4,2586.8,3.86568]
[1727309087624,0.7822,2587.4,2586.8,7.5170953]
[1727309087777,0.7822,2587.4,2586.9,0.07670757]
[1727309087936,0.7822,2587.4,2587.0,3.86539]
[1727309088548,4.64713,2587.4,2586.9,0.07670757]
[1727309088748,4.64713,2587.4,2586.8,7.73136]
[1727309089372,0.7822,2587.4,2586.8,3.86568]
[1727309089579,3.86511,2587.3,2586.8,3.86568]
[1727309090078,3.86511,2587.3,2586.7,3.86592]
[1727309090381,3.8652,2587.2,2586.7,3.86592]
[1727309091568,0.7822,2587.4,2586.6,0.7584]
[1727309091796,3.86518,2587.2,2586.8,3.86563]
[1727309091952,3.86516,2587.3,2586.8,3.86563]
[1727309092891,3.86512,2587.3,2586.8,3.86563]
[1727309093769,7.73028,2587.3,2586.7,3.86592]
[1727309094415,3.96181194,2587.2,2586.7,3.86592]
[1727309094603,3.86512,2587.3,2586.5,3.0]
[1727309094604,3.86557,2587.0,2586.5,3.0]
[1727309094803,3.86557,2587.0,2586.5,6.86622]
[1727309095695,3.86553,2587.0,2586.5,6.86622]
[1727309096994,4.68823,2587.1,2586.5,10.73229]
[1727309097207,8.55366,2587.1,2586.5,10.73229]
[1727309097384,4.68823,2587.1,2586.6,3.86607]
[1727309098289,4.68823,2587.1,2586.5,6.86614]
[1727309098290,4.68823,2587.1,2586.7,3.86591]
[1727309098498,0.8229,2587.1,2586.7,3.86591]
[1727309099591,4.68824,2587.1,2586.7,3.86591]
[1727309099913,4.68824,2587.1,2586.5,6.8661]
[1727309100588,0.81214024,2587.3,2587.0,3.6514153]
[1727309100793,3.86477,2587.5,2587.0,8.2826653]
[1727309100976,3.86477,2587.5,2586.9,3.86562]
[1727309100977,3.8649,2587.4,2586.9,3.86562]
[1727309101167,3.8649,2587.4,2587.0,3.0]
[1727309101367,3.8649,2587.4,2587.0,3.86546]
[1727309101564,4.67687024,2587.5,2587.0,3.86546]
[1727309101819,0.81214024,2587.5,2587.1,3.86525]
[1727309101996,5.08451061,2587.6,2587.1,3.86525]
[1727309101997,0.81214024,2587.7,2587.3,3.86501]
[1727309102325,5.49355024,2587.8,2587.3,3.86501]
[1727309102535,5.49355024,2587.8,2587.3,3.86495]
[1727309102761,5.49355024,2587.8,2587.3,7.72989]
[1727309103042,5.49355024,2587.8,2587.4,3.86487]
[1727309103200,5.49355024,2587.8,2587.3,3.86494]
[1727309103406,4.67622024,2588.0,2587.4,4.66598]
[1727309103754,0.81214024,2587.9,2587.4,8.53077]
[1727309104041,3.86418,2587.9,2587.4,4.66598]
[1727309104201,0.81214024,2588.0,2587.4,0.8778758]
[1727309104405,0.81214024,2588.0,2587.5,3.86463]
[1727309104599,0.81214024,2588.0,2587.6,3.86449]
[1727309104832,5.46680024,2588.1,2587.6,3.86449]
[1727309105000,0.81214024,2588.0,2587.7,3.86442]
[1727309105200,0.7908,2588.1,2587.4,4.4526153]
[1727309105201,1.60294024,2588.1,2587.6,3.86457]
[1727309105444,0.7908,2588.1,2587.6,7.72906]
[1727309105605,0.7908,2588.1,2587.6,3.86449]
[1727309105806,0.7908,2588.1,2587.6,7.72897]
[1727309106038,4.67590024,2588.2,2587.8,3.8642]
[1727309106039,0.81214024,2588.2,2587.8,3.8642]
[1727309107113,0.81214024,2588.2,2587.7,7.7287]
[1727309107328,0.81214024,2588.2,2587.8,3.86419]
[1727309107546,0.81214024,2588.2,2587.7,3.86435]
[1727309107547,0.81214024,2588.3,2587.9,3.86412]
[1727309107843,0.81214024,2588.3,2587.8,3.86424]
[1727309107844,4.67568024,2588.3,2587.8,3.86424]
[1727309108046,0.81214024,2588.3,2587.9,3.86412]
[1727309108901,11.49666957,2592.0,2587.9,3.86412]
[1727309109130,3.86342,2588.4,2587.9,3.86412]
[1727309109330,3.95997645,2588.5,2587.8,0.8733036]
[1727309109534,3.86347,2588.4,2587.8,0.0744036]
[1727309110243,0.09659645,2588.5,2587.9,3.86413]
[1727309110625,3.95986645,2588.5,2587.9,3.9093015]
[1727309110833,3.95986645,2588.5,2587.9,0.0451715]
[1727309111116,3.86339,2588.4,2587.9,0.0451715]
[1727309111305,0.55,2589.1,2587.9,0.1185386]
[1727309111506,7.72676,2588.5,2587.9,0.1185386]
[1727309111703,0.05860087,2588.4,2587.9,0.1185386]
[1727309112137,0.81890087,2588.4,2587.9,0.1185386]
[1727309112937,0.81890087,2588.4,2587.9,3.9826686]
[1727309113139,0.7603,2588.4,2587.9,3.9826686]
[1727309113648,0.7603,2588.4,2587.9,7.6340839]
[1727309113848,0.7603,2588.4,2587.9,8.4452839]
[1727309115029,0.7603,2588.4,2587.9,0.9297386]
[1727309116364,0.7603,2588.4,2587.9,0.1185386]
[1727309116710,3.86354,2588.3,2587.9,0.1185386]
[1727309116913,0.7948,2588.1,2587.9,0.1185386]
[1727309118514,0.7948,2588.9,2587.9,0.1185386]
[1727309118812,0.88440087,2588.8,2587.9,0.1185386]
[1727309119601,3.86311,2588.6,2587.9,3.9826586]
[1727309119802,0.05860087,2588.5,2587.9,3.9826586]
[1727309120596,0.8264,2588.4,2587.9,3.9826586]
[1727309121309,0.8264,2588.4,2587.9,7.8466986]
[1727309121616,0.05860087,2588.5,2588.0,3.86396]
[1727309121914,0.05860087,2588.5,2587.9,7.8466186]
[1727309122119,0.05860087,2588.5,2587.9,3.9825786]
[1727309122282,0.05860087,2588.5,2587.9,7.8466286]
[1727309122484,0.05860087,2588.5,2587.9,3.9825786]
[1727309122686,0.05860087,2588.5,2587.9,7.8466286]
[1727309122885,0.05860087,2588.5,2587.9,3.9825786]
[1727309123225,0.782,2588.8,2588.3,3.86351]
[1727309123373,0.782,2589.6,2588.4,3.86796811]
[1727309123576,0.782,2589.4,2588.8,3.8627]
[1727309123809,0.782,2589.8,2588.9,0.7907]
[1727309124127,0.782,2589.8,2589.1,3.86224]
[1727309124128,0.84060087,2589.8,2589.1,3.86224]
[1727309124425,4.70194087,2589.8,2589.1,3.86224]
[1727309124577,4.70194087,2589.8,2589.1,0.0592693]
[1727309124783,0.84060087,2589.8,2589.1,0.0592693]
[1727309125102,0.84060087,2589.8,2589.1,3.9215793]
[1727309125294,4.64294,2590.1,2589.2,0.7907]
[1727309125475,0.05860087,2590.2,2589.1,0.0592693]
[1727309125476,0.8179,2589.6,2589.1,0.0592693]
[1727309127919,3.86176,2589.5,2589.1,0.0592693]
[1727309128278,0.87650087,2589.6,2589.1,0.0592693]
[1727309128732,3.86126,2589.9,2589.2,0.7659]
[1727309129211,3.91990087,2589.8,2589.2,0.7659]
[1727309129723,3.91990087,2589.8,2589.2,0.8251693]
[1727309130082,0.05860087,2589.8,2589.2,0.8251693]
[1727309130711,3.91992087,2589.8,2589.2,0.8251693]
[1727309130904,4.68362,2590.0,2589.2,4.6872593]
[1727309131185,0.8226,2590.0,2589.2,4.6872593]
[1727309131531,3.86115,2589.9,2589.2,4.6872593]
[1727309132026,3.86115,2589.9,2589.3,0.09596614]
[1727309132246,0.88120087,2590.0,2589.3,3.95790614]
[1727309132383,4.68366,2590.0,2589.3,3.95790614]
[1727309132586,4.68366,2590.0,2589.3,0.09596614]
[1727309132823,3.86124,2589.9,2589.3,0.15523544]
[1727309133033,3.86146,2589.7,2589.3,0.15523544]
[1727309133591,3.86178,2589.5,2589.3,0.15523544]
[1727309134703,4.62283,2589.6,2589.3,0.15523544]
[1727309134918,3.86176,2589.5,2589.3,0.15523544]
[1727309137946,0.81980087,2589.6,2589.3,0.15523544]
[1727309138853,4.68142087,2589.6,2589.3,0.15523544]
[1727309139151,0.8069,2589.8,2589.3,0.15523544]
[1727309139645,3.86189,2589.4,2589.3,0.15523544]
[1727309139858,4.72739087,2589.4,2589.3,0.15523544]
[1727309140209,4.72739087,2589.4,2589.3,0.0592693]
[1727309140455,5.58630396,2589.4,2589.3,0.0592693]
[1727309140770,5.58630396,2589.4,2588.3,0.0592693]
[1727309140771,4.67015,2588.5,2588.3,0.0592693]
[1727309141055,3.86339,2588.4,2588.3,0.0592693]
[1727309141210,3.92199087,2588.4,2588.3,0.0592693]
[1727309141411,4.78120496,2588.4,2588.3,0.0592693]
[1727309141828,6.09670496,2588.4,2588.3,0.0592693]
[1727309143169,5.54670496,2588.4,2588.3,0.0592693]
[1727309144747,4.68749087,2588.4,2588.3,0.0592693]
[1727309144939,0.82410087,2588.4,2588.3,0.0592693]
[1727309145141,4.68749087,2588.4,2588.3,0.0592693]
[1727309145518,0.82410087,2588.4,2588.3,0.0592693]
[1727309145813,3.86301,2588.7,2588.3,0.0592693]
[1727309146018,0.05860087,2588.6,2588.3,0.0592693]
[1727309146369,3.92174087,2588.6,2588.3,0.0592693]
[1727309147414,0.05860087,2588.6,2588.3,0.0592693]
[1727309147657,3.92162087,2588.7,2588.3,0.0592693]
[1727309147859,3.92113087,2589.0,2588.4,0.9481]
[1727309148563,0.05860087,2589.0,2588.4,0.9481]
[1727309148712,0.05860087,2589.0,2588.4,4.81148]
[1727309149453,3.86183,2589.5,2588.7,7.81006]
[1727309149768,3.86235,2589.1,2588.7,0.9472]
[1727309150259,3.8625,2589.0,2588.7,0.9472]
[1727309150555,3.86272,2588.9,2588.4,3.9614]
[1727309150728,3.8625,2589.0,2588.4,0.9614]
[1727309150928,3.92110087,2589.0,2588.4,0.9614]
[1727309151133,3.86264,2588.9,2588.4,0.9614]
[1727309157283,3.92142087,2588.8,2588.4,0.9614]
[1727309157805,0.05860087,2588.8,2588.4,0.9614]
[1727309158168,0.05860087,2588.8,2588.3,0.0592693]
[1727309158787,1.02720087,2588.9,2588.4,3.0]
[1727309159196,4.86302,2589.2,2588.5,3.86314]
[1727309159395,3.92095087,2589.1,2588.5,3.86314]
[1727309159894,7.78339087,2589.1,2588.4,3.86331]
[1727309160081,0.05860087,2589.0,2588.4,3.86331]
[1727309160466,0.05860087,2589.1,2588.5,4.86861]
[1727309160661,0.05860087,2589.1,2588.5,8.73175]
[1727309160966,3.86212,2589.3,2588.6,3.86299]
[1727309161386,7.78285087,2589.3,2588.6,3.86299]
[1727309161575,3.86185,2589.5,2588.6,3.86299]
[1727309161771,0.05860087,2589.4,2588.8,3.86275]
[1727309161970,3.92057087,2589.4,2588.8,3.86275]
[1727309162413,3.92057087,2589.4,2588.9,0.08943682]
[1727309163109,3.86227,2589.2,2588.5,7.8687]
[1727309163409,0.05860087,2589.1,2588.7,3.0]
[1727309163962,3.92066087,2589.3,2588.8,0.08943682]
[1727309164279,0.05860087,2589.3,2588.8,0.08943682]
[1727309164480,0.05860087,2589.3,2588.8,3.95220682]
[1727309164998,3.92051087,2589.4,2588.8,3.95220682]
[1727309165200,3.92051087,2589.4,2588.9,0.9905]
[1727309165567,3.92051087,2589.4,2589.0,0.08943682]
[1727309166501,7.78252087,2589.4,2589.0,0.08943682]
[1727309166668,4.80398,2589.6,2589.0,0.08943682]
[1727309166869,4.86258087,2589.6,2589.0,3.95190682]
[1727309167064,3.92028087,2589.6,2589.0,3.95190682]
[1727309168677,0.05860087,2589.6,2589.1,0.9707]
[1727309168878,3.86167,2589.6,2589.1,0.9707]
[1727309169118,3.86167,2589.6,2589.2,0.08900827]
[1727309169916,7.72337,2589.6,2589.2,0.08900827]
[1727309170406,0.05860087,2589.5,2589.2,0.08900827]
[1727309170582,3.86193,2589.4,2589.2,0.08900827]
[1727309171570,3.86193,2589.4,2588.9,3.0]
[1727309171769,3.86193,2589.4,2589.3,0.08871612]
[1727309172106,0.9173,2589.3,2588.8,0.9605]
[1727309172411,0.9173,2589.3,2588.6,1.0198061]
[1727309172412,3.86253,2589.0,2588.6,1.0198061]
[1727309172617,3.92113087,2589.0,2588.6,1.0198061]
[1727309173000,3.86224,2589.2,2588.6,4.8827561]
[1727309173001,3.86231,2589.2,2588.6,4.8827561]
[1727309173307,0.05860087,2589.2,2588.6,4.8827561]
[1727309173814,0.05860087,2589.2,2588.7,3.86293]
[1727309174314,0.9173,2589.3,2588.8,3.86278]
[1727309174468,0.05860087,2589.4,2588.8,3.86278]
[1727309174820,0.05860087,2589.6,2589.1,0.927]
[1727309174968,3.92020087,2589.6,2589.1,0.927]
[1727309175311,0.05860087,2589.6,2589.1,0.927]
[1727309175613,0.05860087,2589.6,2589.1,3.927]
[1727309176203,3.92031087,2589.6,2589.1,3.927]
[1727309178049,3.92031087,2589.6,2588.8,3.86273]
[1727309178050,3.86189,2589.4,2588.9,3.9313]
[1727309178219,0.05860087,2589.4,2588.9,3.9313]
[1727309178424,3.92039087,2589.5,2588.9,3.9313]
[1727309179152,3.92039087,2589.5,2588.9,7.79384]
[1727309179455,3.86191,2589.4,2588.9,7.79384]
[1727309179654,3.92051087,2589.4,2588.9,7.79384]
[1727309179859,0.05860087,2589.4,2589.0,0.08868688]
[1727309180543,0.05860087,2589.5,2589.0,0.08868688]
[1727309180861,3.92034087,2589.5,2589.0,0.08868688]
[1727309181377,3.92034087,2589.5,2589.0,3.95115688]
[1727309181540,3.92034087,2589.5,2589.0,0.08868688]
[1727309182174,0.9403,2589.4,2589.0,0.08868688]
[1727309182361,0.05860087,2589.3,2589.0,0.08868688]
[1727309182666,0.05860087,2589.3,2588.8,6.86279]
[1727309182871,4.86091087,2589.4,2589.1,0.08862845]
[1727309183080,4.86091087,2589.4,2588.9,3.86255]
[1727309183081,1.95467935,2589.4,2588.9,3.86255]
[1727309183377,0.99890087,2589.4,2589.2,0.08862845]
[1727309183543,0.99890087,2589.4,2588.9,3.86255]
[1727309183747,0.99890087,2589.4,2589.0,0.08862845]
[1727309184142,0.05860087,2589.4,2589.0,0.08862845]
[1727309184368,1.00340087,2589.6,2589.1,3.86226]
[1727309185078,4.86500087,2589.6,2589.2,0.08862845]
[1727309185370,1.00340087,2589.6,2589.2,0.08862845]
[1727309185949,4.86501087,2589.6,2589.2,0.08862845]
[1727309186288,1.00340087,2589.6,2589.2,0.08862845]
[1727309186596,4.86503087,2589.6,2589.2,0.08862845]
[1727309188988,4.86503087,2589.6,2589.0,4.79129]
[1727309188989,3.86182,2589.5,2589.0,0.9288]
[1727309189294,1.00340087,2589.6,2589.3,0.08862845]
[1727309189593,1.00340087,2589.6,2589.4,0.08859925]
[1727309189753,1.00340087,2589.6,2589.0,4.79127]
[1727309189951,1.00340087,2589.6,2589.1,0.08859925]
[1727309190158,4.86504087,2589.6,2589.1,0.08859925]
[1727309190671,1.00340087,2589.6,2589.1,3.95090925]
[1727309191291,0.05860087,2589.6,2589.1,7.81315925]
[1727309191593,0.05860087,2589.6,2589.1,3.95084925]
[1727309192095,0.05860087,2589.6,2589.2,3.86212]
[1727309192388,4.7913,2589.8,2589.2,3.86212]
[1727309192389,0.05860087,2589.7,2589.2,3.86212]
[1727309192599,0.05860087,2589.7,2589.3,0.08859925]
[1727309192889,0.05860087,2589.7,2589.2,3.86212]
[1727309193099,0.05860087,2589.7,2589.4,0.08859925]
[1727309193272,0.05860087,2589.7,2589.1,3.86224]
[1727309193273,3.92006087,2589.7,2589.1,3.86224]
[1727309193476,3.92006087,2589.7,2589.5,0.08859925]
[1727309193676,0.48500609,2589.6,2589.1,3.86224]
[1727309193882,3.92006087,2589.7,2589.6,0.08859925]
[1727309194388,3.92006087,2589.7,2589.2,3.86217]
[1727309194605,3.92006087,2589.7,2589.6,0.08859925]
[1727309194805,3.92006087,2589.7,2589.2,3.86217]
[1727309195022,3.92006087,2589.7,2589.6,0.08859925]
[1727309195184,4.79118996,2589.7,2589.2,3.86217]
[1727309195374,3.92006087,2589.7,2589.6,0.08859925]
[1727309195573,3.92006087,2589.7,2589.2,3.86217]
[1727309195905,3.92006087,2589.7,2589.3,0.08859925]
[1727309196271,3.92006087,2589.7,2589.2,3.86217]
[1727309196835,0.05860087,2589.7,2589.3,3.95062925]
[1727309197121,3.92006087,2589.7,2589.3,0.08859925]
[1727309197418,4.37593421,2589.7,2589.3,0.08859925]
[1727309197628,4.37593421,2589.7,2589.4,0.08859925]
[1727309197933,3.86174,2589.5,2589.0,3.86249]
[1727309198130,0.9206,2589.6,2589.5,0.08859925]
[1727309198292,3.86141,2589.8,2589.5,0.08859925]
[1727309198293,3.86152,2589.7,2589.5,0.08859925]
[1727309198482,4.247661,2589.7,2589.2,4.81716]
[1727309198680,3.86152,2589.7,2589.2,4.81716]
[1727309199403,4.78201,2589.8,2589.2,4.81716]
[1727309199603,8.64345,2589.8,2589.2,4.81716]
[1727309200130,0.05860087,2589.7,2589.2,4.81716]
[1727309200315,3.92005087,2589.7,2589.2,4.81716]
[1727309200834,3.86161,2589.6,2589.2,0.955]
[1727309201032,4.79039696,2589.7,2589.1,3.86232]
[1727309201406,7.72329,2589.6,2589.0,3.86242]
[1727309201619,0.05860087,2589.5,2589.0,3.86242]
[1727309202133,0.05860087,2589.5,2589.0,7.72482]
[1727309202357,0.05860087,2589.5,2589.1,3.8622]
[1727309202847,4.81111,2589.4,2588.9,3.0]
[1727309202999,4.40770196,2589.3,2588.6,4.8917461]
[1727309203420,4.40770196,2589.3,2588.7,3.86294]
[1727309203895,0.54557196,2589.3,2588.9,3.86263]
[1727309204093,0.54557196,2589.3,2588.8,3.86268]
[1727309204291,0.54557196,2589.3,2588.8,7.72538]
[1727309204535,0.54557196,2589.3,2588.8,3.86268]
[1727309204721,4.40762196,2589.3,2588.8,3.86268]
[1727309204938,4.40762196,2589.3,2588.8,7.72539]
[1727309205349,4.40762196,2589.3,2588.8,3.86268]
[1727309207446,3.86153,2589.7,2588.9,4.8019]
[1727309207744,0.05860087,2589.6,2589.3,3.862]
[1727309209501,3.86088,2590.1,2589.4,0.9452]
[1727309209704,3.40425047,2590.4,2589.4,0.9452]
[1727309209705,4.87612,2589.9,2589.4,1.02710986]
[1727309210043,0.05860087,2589.8,2589.4,1.02710986]
[1727309210199,0.05860087,2589.8,2589.4,4.88899986]
[1727309210401,0.05860087,2589.8,2589.4,0.08190986]
[1727309210601,3.92000087,2589.8,2589.4,0.08190986]
[1727309210930,1.0149,2589.5,2589.4,0.08190986]
[1727309211135,1.07350087,2589.5,2589.4,0.08190986]
[1727309211303,1.0149,2589.4,2588.7,3.86284]
[1727309211505,6.86103,2590.0,2588.6,0.0475061]
[1727309211506,4.8774,2589.0,2588.6,0.0475061]
[1727309211708,0.05860087,2588.9,2588.6,0.0475061]
[1727309212540,0.05860087,2588.9,2588.6,3.9105161]
[1727309212741,1.07350087,2589.0,2588.6,3.9105161]
[1727309215346,1.07350087,2589.0,2588.7,3.86291]
[1727309215931,1.05920087,2589.3,2588.7,3.86291]
[1727309216128,1.44539887,2589.3,2588.9,3.86264]
[1727309216533,5.30745887,2589.3,2588.7,3.8628]
[1727309217646,1.44539887,2589.3,2588.8,3.86278]
[1727309217948,5.30751887,2589.3,2588.8,3.86278]